[Event "Titled Tuesday Blitz January 31 Early 2023"]
[White "Svane, Frederik"]
[Black "Fernandez Guillen, Ernesto J."]
[WhiteFideId "12923044"]
[BlackFideId "3512428"]
[WhiteElo "2600"]
[BlackElo "2477"]
[Result "0-1"]
[Round "09"]
[TimeControl "180+2"]
[Date "2023.01.31"]
[WhiteClock "0:00:01"]
[BlackClock "0:00:04"]

1. e4 {[%clk 0:02:58]}  e5 {[%clk 0:02:57]} 2. Nf3 {[%clk 0:02:44]}  Nc6 {[%clk 0:02:56]} 3. Nc3 {[%clk 0:02:43]}  g6 {[%clk 0:02:57]} 4. Bc4 {[%clk 0:02:43]}  Bg7 {[%clk 0:02:57]} 5. O-O {[%clk 0:02:43]}  Nge7 {[%clk 0:02:56]} 6. d3 {[%clk 0:02:43]}  O-O {[%clk 0:02:55]} 7. h4 {[%clk 0:02:42]}  h6 {[%clk 0:02:55]} 8. h5 {[%clk 0:02:42]}  g5 {[%clk 0:02:54]} 9. Nh2 {[%clk 0:02:42]}  Na5 {[%clk 0:02:43]} 10. Ng4 {[%clk 0:02:41]}  Nxc4 {[%clk 0:02:43]} 11. dxc4 {[%clk 0:02:40]}  d6 {[%clk 0:02:40]} 12. Ne3 {[%clk 0:02:37]}  f5 {[%clk 0:02:39]} 13. exf5 {[%clk 0:02:35]}  Nxf5 {[%clk 0:02:40]} 14. Ncd5 {[%clk 0:02:33]}  Nh4 {[%clk 0:02:32]} 15. Bd2 {[%clk 0:02:24]}  c6 {[%clk 0:02:22]} 16. Nc3 {[%clk 0:02:20]}  Be6 {[%clk 0:02:22]} 17. b3 {[%clk 0:02:19]}  d5 {[%clk 0:02:10]} 18. cxd5 {[%clk 0:02:06]}  cxd5 {[%clk 0:02:11]} 19. Ncxd5 {[%clk 0:02:05]}  Bxd5 {[%clk 0:02:11]} 20. Bb4 {[%clk 0:02:06]}  Bc6 {[%clk 0:02:09]} 21. Bxf8 {[%clk 0:02:06]}  Qxf8 {[%clk 0:02:04]} 22. Qg4 {[%clk 0:01:53]}  Kh8 {[%clk 0:02:01]} 23. Rad1 {[%clk 0:01:51]}  Qe7 {[%clk 0:01:59]} 24. Rfe1 {[%clk 0:01:47]}  Rf8 {[%clk 0:01:58]} 25. Qe2 {[%clk 0:01:22]}  Qe6 {[%clk 0:01:49]} 26. f3 {[%clk 0:00:28]}  Nxf3+ {[%clk 0:01:32]} 27. gxf3 {[%clk 0:00:26]}  Bxf3 {[%clk 0:01:32]} 28. Qh2 {[%clk 0:00:18]}  Bxd1 {[%clk 0:01:27]} 29. Rxd1 {[%clk 0:00:17]}  Qb6 {[%clk 0:01:21]} 30. Qe2 {[%clk 0:00:16]}  e4 {[%clk 0:01:20]} 31. Kg2 {[%clk 0:00:13]}  Qe6 {[%clk 0:01:10]} 32. Qg4 {[%clk 0:00:10]}  Qe5 {[%clk 0:01:07]} 33. Rf1 {[%clk 0:00:09]}  Rf4 {[%clk 0:00:56]} 34. Qc8+ {[%clk 0:00:09]}  Kh7 {[%clk 0:00:56]} 35. Qd7 {[%clk 0:00:05]}  Rxf1 {[%clk 0:00:53]} 36. Nxf1 {[%clk 0:00:06]}  Qf4 {[%clk 0:00:52]} 37. Ng3 {[%clk 0:00:05]}  Qf3+ {[%clk 0:00:37]} 38. Kh3 {[%clk 0:00:05]}  e3 {[%clk 0:00:33]} 39. Qd3+ {[%clk 0:00:05]}  Kg8 {[%clk 0:00:32]} 40. Qd8+ {[%clk 0:00:04]}  Bf8 {[%clk 0:00:32]} 41. Qd7 {[%clk 0:00:02]}  Qf7 {[%clk 0:00:16]} 42. Qxf7+ {[%clk 0:00:01]}  Kxf7 {[%clk 0:00:17]} 43. Kg4 {[%clk 0:00:02]}  Bd6 {[%clk 0:00:12]} 44. Ne2 {[%clk 0:00:03]}  Bf4 {[%clk 0:00:10]} 45. Kf3 {[%clk 0:00:03]}  Ke6 {[%clk 0:00:09]} 46. c4 {[%clk 0:00:03]}  Ke5 {[%clk 0:00:09]} 47. a4 {[%clk 0:00:02]}  a5 {[%clk 0:00:08]} 48. Nc3 {[%clk 0:00:02]}  Kf5 {[%clk 0:00:09]} 49. Nd5 {[%clk 0:00:02]}  g4+ {[%clk 0:00:10]} 50. Ke2 {[%clk 0:00:02]}  g3 {[%clk 0:00:07]} 51. Kf3 {[%clk 0:00:02]}  Bg5 {[%clk 0:00:03]} 52. Kxg3 {[%clk 0:00:02]}  Ke4 {[%clk 0:00:04]} 53. Kg2 {[%clk 0:00:01]}  Kd3 {[%clk 0:00:04]} 54. Nxe3 {[%clk 0:00:01]}  Kxe3 {[%clk 0:00:03]} 55. Kg3 {[%clk 0:00:01]}  Kd4 {[%clk 0:00:04]} 0-1


[Site "https://www.chess.com"]

[Event "Titled Tuesday Blitz January 31 Early 2023"]
[White "Starozhilov, Leonid"]
[Black "Yeletsky, Ivan"]
[WhiteFideId "14106752"]
[BlackFideId "24180327"]
[WhiteElo "2313"]
[BlackElo "2494"]
[Result "0-1"]
[Round "09"]
[TimeControl "180+2"]
[Date "2023.01.31"]
[WhiteClock "0:00:02"]
[BlackClock "0:00:49"]

1. e4 {[%clk 0:03:00]}  c6 {[%clk 0:02:55]} 2. d4 {[%clk 0:02:54]}  d5 {[%clk 0:02:55]} 3. exd5 {[%clk 0:02:54]}  cxd5 {[%clk 0:02:55]} 4. Bd3 {[%clk 0:02:54]}  Nf6 {[%clk 0:02:55]} 5. c3 {[%clk 0:02:52]}  Bg4 {[%clk 0:02:54]} 6. Ne2 {[%clk 0:02:51]}  Nc6 {[%clk 0:02:51]} 7. Bf4 {[%clk 0:02:51]}  e6 {[%clk 0:02:51]} 8. Qb3 {[%clk 0:02:49]}  Qd7 {[%clk 0:02:47]} 9. Ng3 {[%clk 0:02:44]}  Bd6 {[%clk 0:02:37]} 10. Bxd6 {[%clk 0:02:42]}  Qxd6 {[%clk 0:02:38]} 11. h3 {[%clk 0:02:37]}  Bh5 {[%clk 0:02:39]} 12. Nd2 {[%clk 0:02:19]}  O-O {[%clk 0:02:35]} 13. O-O {[%clk 0:02:15]}  Bg6 {[%clk 0:02:33]} 14. Bxg6 {[%clk 0:02:11]}  hxg6 {[%clk 0:02:33]} 15. a4 {[%clk 0:02:09]}  Rab8 {[%clk 0:02:26]} 16. Rfe1 {[%clk 0:02:07]}  Ne7 {[%clk 0:02:14]} 17. Nf3 {[%clk 0:02:02]}  Nf5 {[%clk 0:02:12]} 18. Nxf5 {[%clk 0:01:51]}  gxf5 {[%clk 0:02:13]} 19. Ne5 {[%clk 0:01:51]}  g6 {[%clk 0:02:09]} 20. a5 {[%clk 0:01:46]}  Kg7 {[%clk 0:02:08]} 21. f3 {[%clk 0:01:41]}  Nh5 {[%clk 0:01:53]} 22. Qd1 {[%clk 0:01:32]}  Rh8 {[%clk 0:01:53]} 23. Qd2 {[%clk 0:01:32]}  Qe7 {[%clk 0:01:26]} 24. a6 {[%clk 0:01:23]}  Qh4 {[%clk 0:01:26]} 25. axb7 {[%clk 0:01:09]}  Nf4 {[%clk 0:01:26]} 26. Qf2 {[%clk 0:00:32]}  Qg5 {[%clk 0:01:21]} 27. Kf1 {[%clk 0:00:25]}  Rxb7 {[%clk 0:01:20]} 28. b4 {[%clk 0:00:20]}  Rc7 {[%clk 0:01:17]} 29. Ra3 {[%clk 0:00:20]}  f6 {[%clk 0:00:59]} 30. Nc6 {[%clk 0:00:08]}  Nd3 {[%clk 0:00:59]} 31. Qe3 {[%clk 0:00:05]}  Nxe1 {[%clk 0:00:58]} 32. Qxe6 {[%clk 0:00:02]}  Nc2 {[%clk 0:00:49]} 0-1


[Site "https://www.chess.com"]

[Event "Titled Tuesday Blitz January 31 Early 2023"]
[White "Vlassov, Nikolai"]
[Black "Sychev, Klementy"]
[WhiteFideId "4103360"]
[BlackFideId "4114060"]
[WhiteElo "2283"]
[BlackElo "2547"]
[Result "0-1"]
[Round "09"]
[TimeControl "180+2"]
[Date "2023.01.31"]
[WhiteClock "0:00:08"]
[BlackClock "0:01:26"]

1. e4 {[%clk 0:03:00]}  e5 {[%clk 0:02:59]} 2. Bc4 {[%clk 0:03:00]}  Nf6 {[%clk 0:02:58]} 3. d3 {[%clk 0:03:00]}  Nc6 {[%clk 0:02:57]} 4. Nf3 {[%clk 0:03:00]}  Bc5 {[%clk 0:02:55]} 5. Bg5 {[%clk 0:02:59]}  h6 {[%clk 0:02:53]} 6. Bh4 {[%clk 0:02:59]}  Be7 {[%clk 0:02:53]} 7. Nc3 {[%clk 0:02:57]}  d6 {[%clk 0:02:52]} 8. Bxf6 {[%clk 0:02:55]}  Bxf6 {[%clk 0:02:52]} 9. Nd5 {[%clk 0:02:56]}  g6 {[%clk 0:02:48]} 10. Nxf6+ {[%clk 0:02:55]}  Qxf6 {[%clk 0:02:47]} 11. h3 {[%clk 0:02:56]}  Bd7 {[%clk 0:02:45]} 12. c3 {[%clk 0:02:56]}  g5 {[%clk 0:02:43]} 13. Nd2 {[%clk 0:02:47]}  h5 {[%clk 0:02:36]} 14. Nf1 {[%clk 0:02:42]}  O-O-O {[%clk 0:02:23]} 15. Ne3 {[%clk 0:02:41]}  g4 {[%clk 0:02:18]} 16. Nd5 {[%clk 0:02:18]}  Qg6 {[%clk 0:02:12]} 17. Qd2 {[%clk 0:02:05]}  f5 {[%clk 0:02:08]} 18. exf5 {[%clk 0:02:01]}  Bxf5 {[%clk 0:02:07]} 19. O-O-O {[%clk 0:01:58]}  Kb8 {[%clk 0:02:06]} 20. Bb5 {[%clk 0:01:46]}  Bd7 {[%clk 0:02:01]} 21. Bxc6 {[%clk 0:01:40]}  Bxc6 {[%clk 0:01:59]} 22. Ne7 {[%clk 0:01:40]}  Qe8 {[%clk 0:01:58]} 23. Nxc6+ {[%clk 0:01:39]}  Qxc6 {[%clk 0:01:59]} 24. hxg4 {[%clk 0:01:39]}  hxg4 {[%clk 0:01:56]} 25. Qg5 {[%clk 0:01:03]}  Qxg2 {[%clk 0:01:50]} 26. Qf6 {[%clk 0:00:30]}  Rhf8 {[%clk 0:01:46]} 27. Qh4 {[%clk 0:00:17]}  Rde8 {[%clk 0:01:37]} 28. Rhg1 {[%clk 0:00:15]}  Qd5 {[%clk 0:01:37]} 29. Rxg4 {[%clk 0:00:12]}  Qxa2 {[%clk 0:01:35]} 30. Rg7 {[%clk 0:00:11]}  e4 {[%clk 0:01:30]} 31. dxe4 {[%clk 0:00:09]}  Qa1+ {[%clk 0:01:29]} 32. Kc2 {[%clk 0:00:09]}  Qa4+ {[%clk 0:01:29]} 33. Kc1 {[%clk 0:00:08]}  Rxe4 {[%clk 0:01:26]} 0-1


[Site "https://www.chess.com"]

[Event "Titled Tuesday Blitz January 31 Early 2023"]
[White "Kazakouski, Valery"]
[Black "Mirzoev, Azer"]
[WhiteFideId "13507443"]
[BlackFideId "13400304"]
[WhiteElo "2539"]
[BlackElo "2416"]
[Result "1-0"]
[Round "09"]
[TimeControl "180+2"]
[Date "2023.01.31"]
[WhiteClock "0:01:45"]
[BlackClock "0:00:07"]

1. Nf3 {[%clk 0:02:56]}  Nf6 {[%clk 0:03:00]} 2. c4 {[%clk 0:02:56]}  c5 {[%clk 0:02:59]} 3. b3 {[%clk 0:02:56]}  b6 {[%clk 0:02:59]} 4. g3 {[%clk 0:02:54]}  Bb7 {[%clk 0:02:59]} 5. Bg2 {[%clk 0:02:55]}  g6 {[%clk 0:02:59]} 6. Bb2 {[%clk 0:02:55]}  Bg7 {[%clk 0:02:59]} 7. O-O {[%clk 0:02:55]}  O-O {[%clk 0:03:00]} 8. d4 {[%clk 0:02:56]}  cxd4 {[%clk 0:03:00]} 9. Qxd4 {[%clk 0:02:57]}  Nc6 {[%clk 0:02:59]} 10. Qd2 {[%clk 0:02:55]}  d6 {[%clk 0:02:55]} 11. Nc3 {[%clk 0:02:55]}  Rc8 {[%clk 0:02:53]} 12. Rfd1 {[%clk 0:02:55]}  Nb8 {[%clk 0:02:41]} 13. Nd5 {[%clk 0:02:47]}  Nxd5 {[%clk 0:02:37]} 14. Bxg7 {[%clk 0:02:46]}  Kxg7 {[%clk 0:02:35]} 15. cxd5 {[%clk 0:02:46]}  Rc5 {[%clk 0:02:27]} 16. b4 {[%clk 0:02:45]}  Rc4 {[%clk 0:02:18]} 17. Rac1 {[%clk 0:02:45]}  Rxc1 {[%clk 0:02:17]} 18. Rxc1 {[%clk 0:02:45]}  Qd7 {[%clk 0:02:16]} 19. Nd4 {[%clk 0:02:45]}  Rc8 {[%clk 0:02:11]} 20. Rc3 {[%clk 0:02:45]}  Kg8 {[%clk 0:02:02]} 21. Qc2 {[%clk 0:02:35]}  Rxc3 {[%clk 0:02:00]} 22. Qxc3 {[%clk 0:02:36]}  Qc8 {[%clk 0:01:40]} 23. Nc6 {[%clk 0:02:33]}  Qc7 {[%clk 0:01:32]} 24. b5 {[%clk 0:02:21]}  Nxc6 {[%clk 0:00:42]} 25. dxc6 {[%clk 0:02:19]}  Bc8 {[%clk 0:00:42]} 26. a4 {[%clk 0:02:16]}  h5 {[%clk 0:00:41]} 27. Qe3 {[%clk 0:02:10]}  e6 {[%clk 0:00:36]} 28. f4 {[%clk 0:02:09]}  d5 {[%clk 0:00:35]} 29. Qa3 {[%clk 0:02:05]}  Kg7 {[%clk 0:00:28]} 30. Kf2 {[%clk 0:02:05]}  Qd8 {[%clk 0:00:22]} 31. e3 {[%clk 0:01:51]}  f6 {[%clk 0:00:21]} 32. Qd3 {[%clk 0:01:45]}  Qd6 {[%clk 0:00:18]} 33. Qd4 {[%clk 0:01:46]}  Kf7 {[%clk 0:00:16]} 34. e4 {[%clk 0:01:45]}  e5 {[%clk 0:00:12]} 35. fxe5 {[%clk 0:01:41]}  fxe5 {[%clk 0:00:12]} 36. Qxd5+ {[%clk 0:01:41]}  Qxd5 {[%clk 0:00:12]} 37. exd5 {[%clk 0:01:42]}  Ke7 {[%clk 0:00:13]} 38. Be4 {[%clk 0:01:43]}  g5 {[%clk 0:00:12]} 39. h4 {[%clk 0:01:43]}  gxh4 {[%clk 0:00:11]} 40. gxh4 {[%clk 0:01:44]}  Bg4 {[%clk 0:00:08]} 41. Bf3 {[%clk 0:01:44]}  Bxf3 {[%clk 0:00:07]} 42. Kxf3 {[%clk 0:01:44]}  Kd6 {[%clk 0:00:07]} 43. Ke4 {[%clk 0:01:45]} 1-0


[Site "https://www.chess.com"]

[Event "Titled Tuesday Blitz January 31 Early 2023"]
[White "Alex_Sahakyan2006"]
[Black "Pulpan, Jakub"]
[BlackFideId "302759"]
[WhiteElo "2661"]
[BlackElo "2427"]
[Result "1-0"]
[Round "09"]
[TimeControl "180+2"]
[Date "2023.01.31"]
[WhiteClock "0:01:23"]
[BlackClock "0:00:37"]

1. g3 {[%clk 0:03:00]}  g6 {[%clk 0:01:38]} 2. Bg2 {[%clk 0:02:59]}  Bg7 {[%clk 0:01:39]} 3. Nf3 {[%clk 0:02:59]}  e5 {[%clk 0:01:37]} 4. O-O {[%clk 0:02:59]}  d5 {[%clk 0:01:34]} 5. d3 {[%clk 0:02:59]}  Ne7 {[%clk 0:01:31]} 6. Nc3 {[%clk 0:02:57]}  O-O {[%clk 0:01:26]} 7. e4 {[%clk 0:02:56]}  Nbc6 {[%clk 0:01:21]} 8. Re1 {[%clk 0:02:55]}  Re8 {[%clk 0:01:16]} 9. exd5 {[%clk 0:02:52]}  Nxd5 {[%clk 0:01:17]} 10. Nxd5 {[%clk 0:02:53]}  Qxd5 {[%clk 0:01:17]} 11. Nxe5 {[%clk 0:02:52]}  Qd6 {[%clk 0:01:15]} 12. Nxc6 {[%clk 0:02:50]}  Rxe1+ {[%clk 0:01:16]} 13. Qxe1 {[%clk 0:02:49]}  bxc6 {[%clk 0:01:17]} 14. Qe8+ {[%clk 0:02:49]}  Bf8 {[%clk 0:01:16]} 15. Bf4 {[%clk 0:02:22]}  Qf6 {[%clk 0:01:04]} 16. Qxc6 {[%clk 0:02:13]}  Qxb2 {[%clk 0:00:51]} 17. Rf1 {[%clk 0:01:23]}  Rb8 {[%clk 0:00:37]} 18. Qxc7 {[%clk 0:01:23]} 1-0


[Site "https://www.chess.com"]

[Event "Titled Tuesday Blitz January 31 Early 2023"]
[White "Mikaelyan, Arman"]
[Black "Piesik, Piotr"]
[WhiteFideId "13304852"]
[BlackFideId "1136194"]
[WhiteElo "2523"]
[BlackElo "2426"]
[Result "1-0"]
[Round "09"]
[TimeControl "180+2"]
[Date "2023.01.31"]
[WhiteClock "0:00:03"]
[BlackClock "0:00:01"]

1. d4 {[%clk 0:02:44]}  c5 {[%clk 0:02:58]} 2. dxc5 {[%clk 0:02:42]}  e6 {[%clk 0:02:58]} 3. Nf3 {[%clk 0:02:42]}  Bxc5 {[%clk 0:02:58]} 4. c4 {[%clk 0:02:43]}  Nf6 {[%clk 0:02:58]} 5. e3 {[%clk 0:02:40]}  O-O {[%clk 0:02:57]} 6. Nc3 {[%clk 0:02:40]}  d5 {[%clk 0:02:56]} 7. cxd5 {[%clk 0:02:33]}  exd5 {[%clk 0:02:57]} 8. Be2 {[%clk 0:02:29]}  Nc6 {[%clk 0:02:57]} 9. O-O {[%clk 0:02:30]}  Bg4 {[%clk 0:02:57]} 10. h3 {[%clk 0:02:26]}  Bh5 {[%clk 0:02:57]} 11. b3 {[%clk 0:02:27]}  Rc8 {[%clk 0:02:56]} 12. Bb2 {[%clk 0:02:27]}  Re8 {[%clk 0:02:52]} 13. Rc1 {[%clk 0:02:23]}  Bd6 {[%clk 0:02:47]} 14. Nb5 {[%clk 0:02:17]}  Bb8 {[%clk 0:02:46]} 15. Nbd4 {[%clk 0:02:13]}  Nxd4 {[%clk 0:02:37]} 16. Qxd4 {[%clk 0:02:01]}  Qd6 {[%clk 0:02:36]} 17. Rxc8 {[%clk 0:01:52]}  Rxc8 {[%clk 0:02:34]} 18. g3 {[%clk 0:01:21]}  Rc2 {[%clk 0:02:32]} 19. Rc1 {[%clk 0:01:13]}  Rxc1+ {[%clk 0:02:29]} 20. Bxc1 {[%clk 0:01:14]}  Ne4 {[%clk 0:02:26]} 21. Bb2 {[%clk 0:01:10]}  f6 {[%clk 0:02:24]} 22. g4 {[%clk 0:00:37]}  Bf7 {[%clk 0:02:15]} 23. Bf1 {[%clk 0:00:32]}  h6 {[%clk 0:01:59]} 24. Bg2 {[%clk 0:00:28]}  Qc6 {[%clk 0:01:50]} 25. Nd2 {[%clk 0:00:24]}  Be5 {[%clk 0:01:45]} 26. Qd3 {[%clk 0:00:19]}  Bxb2 {[%clk 0:01:38]} 27. Nxe4 {[%clk 0:00:19]}  dxe4 {[%clk 0:01:34]} 28. Bxe4 {[%clk 0:00:20]}  Qc1+ {[%clk 0:01:27]} 29. Kg2 {[%clk 0:00:20]}  Qc7 {[%clk 0:01:26]} 30. Qb5 {[%clk 0:00:19]}  Be5 {[%clk 0:01:19]} 31. Bxb7 {[%clk 0:00:17]}  Qb6 {[%clk 0:01:18]} 32. Qd7 {[%clk 0:00:14]}  Qc7 {[%clk 0:01:13]} 33. Qb5 {[%clk 0:00:14]}  h5 {[%clk 0:01:08]} 34. Bf3 {[%clk 0:00:13]}  hxg4 {[%clk 0:01:07]} 35. hxg4 {[%clk 0:00:14]}  Bd6 {[%clk 0:00:56]} 36. Qd3 {[%clk 0:00:14]}  Qc5 {[%clk 0:00:54]} 37. Qe4 {[%clk 0:00:14]}  a5 {[%clk 0:00:48]} 38. Qa8+ {[%clk 0:00:13]}  Bf8 {[%clk 0:00:48]} 39. Qe4 {[%clk 0:00:13]}  Qa3 {[%clk 0:00:44]} 40. Qc2 {[%clk 0:00:13]}  Qc5 {[%clk 0:00:41]} 41. Qe4 {[%clk 0:00:13]}  Qe5 {[%clk 0:00:40]} 42. Qd3 {[%clk 0:00:12]}  Bd6 {[%clk 0:00:38]} 43. Kf1 {[%clk 0:00:12]}  Be6 {[%clk 0:00:35]} 44. Kg2 {[%clk 0:00:12]}  Kf7 {[%clk 0:00:32]} 45. Kf1 {[%clk 0:00:11]}  g6 {[%clk 0:00:29]} 46. Qc2 {[%clk 0:00:10]}  Bd5 {[%clk 0:00:22]} 47. Bxd5+ {[%clk 0:00:08]}  Qxd5 {[%clk 0:00:23]} 48. Ke2 {[%clk 0:00:08]}  Qb5+ {[%clk 0:00:18]} 49. Kf3 {[%clk 0:00:09]}  Qb7+ {[%clk 0:00:16]} 50. Ke2 {[%clk 0:00:09]}  Qg2 {[%clk 0:00:15]} 51. Qc4+ {[%clk 0:00:08]}  Ke7 {[%clk 0:00:15]} 52. Qd4 {[%clk 0:00:07]}  Qb7 {[%clk 0:00:13]} 53. g5 {[%clk 0:00:07]}  Be5 {[%clk 0:00:11]} 54. Qc5+ {[%clk 0:00:07]}  Kf7 {[%clk 0:00:10]} 55. Qc4+ {[%clk 0:00:06]}  Ke7 {[%clk 0:00:10]} 56. Qc5+ {[%clk 0:00:05]}  Ke6 {[%clk 0:00:09]} 57. gxf6 {[%clk 0:00:05]}  Bxf6 {[%clk 0:00:09]} 58. Qxa5 {[%clk 0:00:06]}  g5 {[%clk 0:00:06]} 59. Qc5 {[%clk 0:00:06]}  Qa6+ {[%clk 0:00:03]} 60. Qc4+ {[%clk 0:00:05]}  Qxc4+ {[%clk 0:00:03]} 61. bxc4 {[%clk 0:00:06]}  Kd6 {[%clk 0:00:03]} 62. Kd3 {[%clk 0:00:05]}  Kc5 {[%clk 0:00:04]} 63. f3 {[%clk 0:00:03]}  Bg7 {[%clk 0:00:02]} 64. a4 {[%clk 0:00:03]}  Kb4 {[%clk 0:00:01]} 65. Ke4 {[%clk 0:00:03]}  Kxc4 {[%clk 0:00:01]} 66. Kf5 {[%clk 0:00:03]} 1-0


[Site "https://www.chess.com"]

[Event "Titled Tuesday Blitz January 31 Early 2023"]
[White "Antonica, Dragos-Andrei"]
[Black "Kukhmazov, Arsen"]
[WhiteFideId "1246372"]
[BlackFideId "24108260"]
[WhiteElo "2373"]
[BlackElo "2512"]
[Result "1-0"]
[Round "09"]
[TimeControl "180+2"]
[Date "2023.01.31"]
[WhiteClock "0:00:38"]
[BlackClock "0:00:26"]

1. d4 {[%clk 0:03:00]}  d5 {[%clk 0:02:59]} 2. c4 {[%clk 0:02:57]}  c6 {[%clk 0:02:59]} 3. Nf3 {[%clk 0:02:57]}  Nf6 {[%clk 0:03:00]} 4. Nc3 {[%clk 0:02:57]}  dxc4 {[%clk 0:02:59]} 5. e3 {[%clk 0:02:54]}  b5 {[%clk 0:02:57]} 6. a4 {[%clk 0:02:54]}  b4 {[%clk 0:02:50]} 7. Na2 {[%clk 0:02:54]}  e6 {[%clk 0:02:50]} 8. Bxc4 {[%clk 0:02:54]}  Be7 {[%clk 0:02:45]} 9. Qe2 {[%clk 0:02:52]}  a5 {[%clk 0:02:45]} 10. b3 {[%clk 0:02:51]}  O-O {[%clk 0:02:45]} 11. Bb2 {[%clk 0:02:51]}  Ba6 {[%clk 0:02:45]} 12. O-O {[%clk 0:02:48]}  c5 {[%clk 0:02:45]} 13. dxc5 {[%clk 0:02:48]}  Bxc5 {[%clk 0:02:44]} 14. Rfd1 {[%clk 0:02:47]}  Qe7 {[%clk 0:02:44]} 15. Ne5 {[%clk 0:02:46]}  Bb7 {[%clk 0:02:12]} 16. Rac1 {[%clk 0:02:41]}  Nc6 {[%clk 0:02:11]} 17. Ng4 {[%clk 0:02:27]}  Ne4 {[%clk 0:01:19]} 18. Bd3 {[%clk 0:02:03]}  f5 {[%clk 0:01:19]} 19. Bxe4 {[%clk 0:01:52]}  fxe4 {[%clk 0:01:20]} 20. Qc4 {[%clk 0:01:30]}  Bb6 {[%clk 0:01:20]} 21. Qxe4 {[%clk 0:01:26]}  h5 {[%clk 0:00:45]} 22. Nh6+ {[%clk 0:01:02]}  Kh8 {[%clk 0:00:45]} 23. Qg6 {[%clk 0:01:02]}  e5 {[%clk 0:00:30]} 24. Rxc6 {[%clk 0:00:53]}  Bxc6 {[%clk 0:00:31]} 25. Qxc6 {[%clk 0:00:53]}  Rf6 {[%clk 0:00:29]} 26. Qxa8+ {[%clk 0:00:53]}  Kh7 {[%clk 0:00:27]} 27. Qe4+ {[%clk 0:00:49]}  Kxh6 {[%clk 0:00:27]} 28. Bxe5 {[%clk 0:00:49]}  Re6 {[%clk 0:00:26]} 29. f4 {[%clk 0:00:38]} 1-0


[Site "https://www.chess.com"]

[Event "Titled Tuesday Blitz January 31 Early 2023"]
[White "Taspinar, Yanki"]
[Black "Koelle, Tobias"]
[WhiteFideId "34561188"]
[BlackFideId "16207378"]
[WhiteElo "2262"]
[BlackElo "2432"]
[Result "1-0"]
[Round "09"]
[TimeControl "180+2"]
[Date "2023.01.31"]
[WhiteClock "0:00:42"]
[BlackClock "0:00:38"]

1. Nf3 {[%clk 0:02:55]}  a6 {[%clk 0:02:59]} 2. g3 {[%clk 0:02:55]}  Ra7 {[%clk 0:03:00]} 3. Bg2 {[%clk 0:02:55]}  Ra8 {[%clk 0:03:01]} 4. O-O {[%clk 0:02:55]}  h6 {[%clk 0:03:01]} 5. d4 {[%clk 0:02:55]}  Rh7 {[%clk 0:03:02]} 6. e4 {[%clk 0:02:55]}  Rh8 {[%clk 0:03:03]} 7. c4 {[%clk 0:02:55]}  e6 {[%clk 0:03:03]} 8. Nc3 {[%clk 0:02:56]}  d6 {[%clk 0:03:03]} 9. e5 {[%clk 0:02:55]}  Nd7 {[%clk 0:03:01]} 10. Re1 {[%clk 0:02:55]}  dxe5 {[%clk 0:02:52]} 11. dxe5 {[%clk 0:02:47]}  Bb4 {[%clk 0:02:51]} 12. Bd2 {[%clk 0:02:47]}  Ne7 {[%clk 0:02:48]} 13. a3 {[%clk 0:02:41]}  Bc5 {[%clk 0:02:44]} 14. b4 {[%clk 0:02:40]}  Ba7 {[%clk 0:02:41]} 15. Qc2 {[%clk 0:02:37]}  Kf8 {[%clk 0:02:27]} 16. Rad1 {[%clk 0:02:36]}  Qe8 {[%clk 0:02:26]} 17. Ne4 {[%clk 0:02:34]}  Rb8 {[%clk 0:02:22]} 18. Bc3 {[%clk 0:02:26]}  b5 {[%clk 0:02:17]} 19. c5 {[%clk 0:02:05]}  Bb7 {[%clk 0:02:15]} 20. h4 {[%clk 0:01:59]}  Bd5 {[%clk 0:02:13]} 21. h5 {[%clk 0:01:51]}  Rd8 {[%clk 0:02:02]} 22. Nh4 {[%clk 0:01:40]}  Kg8 {[%clk 0:01:45]} 23. Nf6+ {[%clk 0:01:21]}  Nxf6 {[%clk 0:01:37]} 24. exf6 {[%clk 0:01:21]}  Bxg2 {[%clk 0:01:33]} 25. Rxd8 {[%clk 0:01:19]}  Qxd8 {[%clk 0:01:34]} 26. fxe7 {[%clk 0:01:18]}  Qxe7 {[%clk 0:01:35]} 27. Kxg2 {[%clk 0:01:17]}  c6 {[%clk 0:01:21]} 28. Bxg7 {[%clk 0:01:15]}  Rh7 {[%clk 0:01:13]} 29. Be5 {[%clk 0:01:15]}  Qg5 {[%clk 0:01:12]} 30. Qe4 {[%clk 0:01:09]}  f6 {[%clk 0:01:08]} 31. Bf4 {[%clk 0:01:07]}  Qd5 {[%clk 0:01:02]} 32. Qxd5 {[%clk 0:01:07]}  exd5 {[%clk 0:01:03]} 33. Re6 {[%clk 0:01:07]}  Rd7 {[%clk 0:01:00]} 34. Rxc6 {[%clk 0:01:06]}  d4 {[%clk 0:01:01]} 35. Nf5 {[%clk 0:01:02]}  d3 {[%clk 0:01:01]} 36. Nd6 {[%clk 0:00:47]}  Kg7 {[%clk 0:00:57]} 37. Kf3 {[%clk 0:00:45]}  a5 {[%clk 0:00:53]} 38. Ke3 {[%clk 0:00:45]}  axb4 {[%clk 0:00:47]} 39. axb4 {[%clk 0:00:45]}  d2 {[%clk 0:00:48]} 40. Kxd2 {[%clk 0:00:45]}  Bb8 {[%clk 0:00:48]} 41. Rc8 {[%clk 0:00:43]}  f5 {[%clk 0:00:44]} 42. Be5+ {[%clk 0:00:41]}  Kh7 {[%clk 0:00:38]} 43. Rh8# {[%clk 0:00:42]} 1-0


[Site "https://www.chess.com"]

[Event "Titled Tuesday Blitz January 31 Early 2023"]
[White "Ordekalog"]
[Black "Zahid, Sanatan"]
[BlackFideId "10201963"]
[WhiteElo "2589"]
[BlackElo "1930"]
[Result "0-1"]
[Round "09"]
[TimeControl "180+2"]
[Date "2023.01.31"]
[WhiteClock "0:00:42"]
[BlackClock "0:02:10"]

1. e4 {[%clk 0:03:00]}  e6 {[%clk 0:02:57]} 2. Bb5 {[%clk 0:02:59]}  Nc6 {[%clk 0:02:51]} 3. Bxc6 {[%clk 0:02:58]}  bxc6 {[%clk 0:02:50]} 4. d3 {[%clk 0:02:57]}  g6 {[%clk 0:02:50]} 5. Nf3 {[%clk 0:02:56]}  Bg7 {[%clk 0:02:48]} 6. O-O {[%clk 0:02:55]}  c5 {[%clk 0:02:48]} 7. Bg5 {[%clk 0:02:43]}  f6 {[%clk 0:02:45]} 8. Be3 {[%clk 0:02:42]}  d6 {[%clk 0:02:45]} 9. c3 {[%clk 0:02:30]}  Ne7 {[%clk 0:02:44]} 10. Qd2 {[%clk 0:02:21]}  h5 {[%clk 0:02:42]} 11. Na3 {[%clk 0:02:17]}  Ba6 {[%clk 0:02:40]} 12. Rfe1 {[%clk 0:01:57]}  Qd7 {[%clk 0:02:38]} 13. Rad1 {[%clk 0:01:55]}  O-O {[%clk 0:02:30]} 14. Nc4 {[%clk 0:01:51]}  Rab8 {[%clk 0:02:28]} 15. b3 {[%clk 0:01:49]}  Bxc4 {[%clk 0:02:27]} 16. dxc4 {[%clk 0:01:48]}  Qc6 {[%clk 0:02:27]} 17. Bh6 {[%clk 0:01:47]}  Kh7 {[%clk 0:02:26]} 18. Bxg7 {[%clk 0:01:46]}  Kxg7 {[%clk 0:02:27]} 19. h4 {[%clk 0:01:43]}  Qa6 {[%clk 0:02:25]} 20. Nh2 {[%clk 0:01:34]}  Nc6 {[%clk 0:02:24]} 21. f4 {[%clk 0:01:32]}  e5 {[%clk 0:02:18]} 22. f5 {[%clk 0:01:31]}  gxf5 {[%clk 0:02:18]} 23. exf5 {[%clk 0:01:28]}  Ne7 {[%clk 0:02:19]} 24. Rf1 {[%clk 0:01:22]}  Rh8 {[%clk 0:02:18]} 25. Rf3 {[%clk 0:01:16]}  Kf7 {[%clk 0:02:18]} 26. Nf1 {[%clk 0:01:12]}  Rbg8 {[%clk 0:02:17]} 27. Ne3 {[%clk 0:01:11]}  Qb7 {[%clk 0:02:17]} 28. Kh2 {[%clk 0:01:08]}  Qe4 {[%clk 0:02:16]} 29. Qf2 {[%clk 0:01:02]}  Rg7 {[%clk 0:02:14]} 30. Re1 {[%clk 0:00:48]}  Rhg8 {[%clk 0:02:13]} 31. Re2 {[%clk 0:00:47]}  a5 {[%clk 0:02:11]} 32. Nd5 {[%clk 0:00:42]}  Rxg2+ {[%clk 0:02:10]} 0-1


[Site "https://www.chess.com"]